fUSD/lending_fUSD_20241216
["ID","MTS","AMOUNT","RATE_DAILY","PERIOD"]
[345567840,1734355835646,-500.0,0.00021917,3]
[345567841,1734355835656,-391.78192873,0.00021917,3]
[345567842,1734355835665,-561.59831269,0.00021917,3]
[345567843,1734355835675,-500.43418862,0.00021917,3]
[345567844,1734355835689,-500.0,0.00021917,3]
[345567845,1734355835698,-500.0,0.00021917,3]
[345567846,1734355835707,-500.0,0.00021917,3]
[345567847,1734355835716,-500.0,0.00021917,3]
[345567848,1734355835726,-503.56912244,0.00021917,3]
[345567849,1734355835737,-500.0,0.00021917,3]
[345567850,1734355835747,-256.18795774,0.00021917,3]
[345567851,1734355835757,-500.0,0.00021917,3]
[345567852,1734355835767,-500.0,0.00021917,3]
[345567853,1734355835775,-500.0,0.00021917,3]
[345567854,1734355835784,-502.60767334,0.00021917,3]
[345567855,1734355835794,-500.0,0.00021917,3]
[345567856,1734355835803,-500.0,0.00021917,3]
[345567857,1734355835812,-239.59447802,0.00021917,3]
[345567858,1734355835821,-500.0,0.00021917,3]
[345567859,1734355835830,-500.0,0.00021917,3]
[345567860,1734355835839,-500.0,0.00021917,3]
[345567861,1734355835848,-500.0,0.00021917,3]
[345567862,1734355835857,-500.0,0.00021917,3]
[345567863,1734355835866,-500.0,0.00021917,3]
[345567864,1734355835875,-500.0,0.00021917,3]
[345567865,1734355835884,-858.43,0.00021917,3]
[345567866,1734355835893,-500.0,0.00021917,3]
[345567867,1734355835902,-500.0,0.00021917,3]
[345567868,1734355835911,-500.0,0.00021917,3]
[345567869,1734355835921,-500.0,0.00021917,3]
[345567870,1734355835930,-500.0,0.00021917,3]
[345567871,1734355835939,-500.0,0.00021917,3]
[345567872,1734355835949,-500.0,0.00021917,3]
[345567873,1734355835958,-500.0,0.00021917,3]
[345567874,1734355835967,-267.57245075,0.00021917,3]
[345567875,1734355835978,-565.77776041,0.00021917,3]
[345567876,1734355835993,-500.0,0.00021917,3]
[345567877,1734355836002,-500.0,0.00021917,3]
[345567878,1734355836011,-500.0,0.00021917,3]
[345567879,1734355836021,-185.66,0.00021917,3]
[345567880,1734355836030,-500.0,0.00021917,3]
[345567881,1734355836040,-500.0,0.00021917,3]
[345567882,1734355836049,-500.0,0.00021917,3]
[345567883,1734355836059,-503.77509053,0.00021917,3]
[345567884,1734355836068,-500.0,0.00021917,3]
[345567885,1734355836078,-500.0,0.00021917,3]
[345567886,1734355836087,-500.0,0.00021917,3]
[345567887,1734355836096,-500.0,0.00021917,3]
[345567888,1734355836105,-500.0,0.00021917,3]
[345567889,1734355836114,-500.0,0.00021917,3]
[345567890,1734355836123,-554.01018941,0.00021917,3]
[345567891,1734355836133,-500.0,0.00021917,3]
[345567892,1734355836142,-500.0,0.00021917,3]
[345567893,1734355836151,-500.0,0.00021917,3]
[345567894,1734355836160,-500.0,0.00021917,3]
[345567895,1734355836169,-500.0,0.00021917,3]
[345567896,1734355836178,-500.0,0.00021917,3]
[345567897,1734355836187,-500.0,0.00021917,3]
[345567898,1734355836196,-527.33,0.00021917,3]
[345567899,1734355836208,-500.0,0.00021917,3]
[345567900,1734355836224,-500.0,0.00021917,3]
[345567901,1734355836237,-500.0,0.00021917,3]
[345567902,1734355836246,-224.07645267,0.00021917,3]
[345567903,1734355836254,-500.0,0.00021917,3]
[345567904,1734355836264,-500.0,0.00021917,3]
[345567905,1734355836274,-500.0,0.00021917,2]
[345567906,1734355836284,-629.77,0.00021917,3]
[345567907,1734355836302,-500.0,0.00021917,3]
[345567908,1734355836311,-500.0,0.00021917,3]
[345567909,1734355836321,-500.0,0.00021917,3]
[345567910,1734355836330,-500.0,0.00021917,3]
[345567911,1734355836339,-382.99591272,0.00021917,3]
[345567912,1734355836348,-500.0,0.00021917,3]
[345567913,1734355836358,-500.0,0.00021917,3]
[345567914,1734355836368,-500.0,0.00021917,3]
[345567915,1734355836378,-500.0,0.00021917,3]
[345567916,1734355836387,-613.75,0.00021917,3]
[345567917,1734355836395,-500.0,0.00021917,3]
[345567918,1734355836405,-500.0,0.00021917,3]
[345567919,1734355836414,-500.0,0.00021917,3]
[345567920,1734355836423,-500.0,0.00021917,3]
[345567921,1734355836432,-500.0,0.00021917,3]
[345567922,1734355836441,-500.0,0.00021917,3]
[345567923,1734355836451,-500.0,0.00021917,3]
[345567924,1734355836460,-500.0,0.00021917,3]
[345567925,1734355836469,-500.0,0.00021917,3]
[345567926,1734355836478,-333.14039847,0.00021917,3]
[345567927,1734355836490,-500.0,0.00021917,3]
[345567928,1734355836499,-500.0,0.00021917,3]
[345567929,1734355836508,-500.0,0.00021917,3]
[345567930,1734355836517,-543.67545684,0.00021917,3]
[345567931,1734355836526,-500.0,0.00021917,3]
[345567932,1734355836535,-150.45706307,0.00021917,3]
[345567933,1734355836545,-500.0,0.00021917,3]
[345567934,1734355836554,-500.0,0.00021973,2]
[345567935,1734355836564,-286.90438871,0.00021973,2]
[345567936,1734355836573,-500.0,0.00021973,2]
[345567937,1734355836582,-287.9525858,0.00021973,2]
[345567938,1734355836591,-500.0,0.00021973,2]
[345567939,1734355836600,-655.87,0.0002199,2]
[345567940,1734355836610,-20486.39952841,0.00022,7]
[345567941,1734355836619,-268.82165069,0.00022096,2]
[345567942,1734355836628,-200.0,0.0002212,2]
[345567943,1734355836638,-295.46,0.00022175,2]
[345567944,1734355836648,-999.0,0.00022219,7]
[345567945,1734355836657,-999.0,0.00022219,7]
[345567946,1734355836667,-999.0,0.00022219,7]
[345567947,1734355836675,-999.0,0.00022219,7]
[345567948,1734355836689,-999.0,0.00022219,7]
[345567949,1734355836699,-999.0,0.00022219,7]
[345567950,1734355836708,-999.0,0.00022219,7]
[345567951,1734355836718,-999.0,0.00022219,7]
[345567952,1734355836728,-999.0,0.00022219,7]
[345567953,1734355836743,-999.0,0.00022219,7]
[345567954,1734355836752,-290.93378814,0.00022219,7]
[345567955,1734355836762,-800.0,0.0002226,2]
[345567956,1734355836772,-268.82165069,0.00022351,2]
[345567957,1734355836782,-2000.0,0.00022363,2]
[345567958,1734355836791,-5800.0,0.00022391,2]
[345567959,1734355836800,-4751.00117327,0.00022399,2]
[345567960,1734355838306,-424.05,0.00019687,2]
[345567961,1734355838316,-299.950035,0.00020157,2]
[345567962,1734355838368,-4579.6151759,0.00020157,2]
[345567963,1734355838379,-3163.74223281,0.00020157,2]
[345567964,1734355838390,-1269.99759,0.00020157,2]
[345567965,1734355838401,-2388.6000052,0.00020157,2]
[345567966,1734355838412,-825.87737312,0.00020157,2]
[345567967,1734355838423,-354.72735042,0.00020157,2]
[345567968,1734355838434,-855.49023755,0.00020157,2]
[345567969,1734355838444,-1168.0,0.00020157,2]
[345567970,1734355838453,-161.39511373,0.00021973,2]
[345567971,1734355838465,-1048.99882673,0.00022399,2]
[345567972,1734355838475,-1000.0,0.00022492,2]
[345567973,1734355838486,-1337.11582199,0.00022499,2]
[345567974,1734355838497,-662.88417801,0.00022499,2]
[345567975,1734355838507,-10294.38525297,0.00022499,2]
[345567976,1734355838515,-1511.11,0.000225,2]
[345567977,1734355838524,-235.21062701,0.00022521,2]
[345567978,1734355838534,-268.82165069,0.00022605,2]
[345567979,1734355838544,-500.0,0.00022714,3]
[345567980,1734355838553,-500.0,0.00022714,3]
[345567981,1734355838566,-527.33,0.00022714,3]
[345567982,1734355838577,-500.0,0.00022714,3]
[345567983,1734355838587,-500.0,0.00022714,3]
[345567984,1734355838596,-1662.39755092,0.00022777,2]
[345567985,1734355838605,-268.82165069,0.0002286,2]
[345567986,1734355838615,-500.0,0.00022869,7]
[345567987,1734355838623,-963.21,0.00022869,7]
[345567988,1734355838632,-295.46,0.00022913,2]
[345567989,1734355838641,-393.39757329,0.00023,2]
[345567990,1734355838650,-177.0,0.00023,2]
[345567991,1734355838659,-200.0,0.00023,2]
[345567992,1734355838668,-192.37,0.00023111,2]
[345567993,1734355838678,-268.82165069,0.00023115,2]
[345567994,1734355838690,-162.569,0.00023122,2]
[345567995,1734355838699,-2000.0,0.00023133,2]
[345567996,1734355838708,-500.0,0.00023142,7]
[345567997,1734355838717,-500.0,0.00023156,3]
[345567998,1734355838729,-500.0,0.00023156,3]
[345567999,1734355838740,-500.0,0.00023156,3]
[345568000,1734355838750,-500.0,0.00023156,3]
[345568001,1734355838763,-500.0,0.00023156,3]
[345568002,1734355838772,-500.0,0.00023156,3]
[345568003,1734355838782,-500.0,0.00023156,3]
[345568005,1734355838791,-500.0,0.00023156,3]
[345568006,1734355838800,-500.0,0.00023156,3]
[345568008,1734355838810,-500.0,0.00023156,3]
[345568009,1734355838819,-373.05,0.00023156,3]
[345568010,1734355838829,-500.0,0.00023156,3]
[345568011,1734355838838,-500.0,0.00023156,3]
[345568012,1734355838847,-500.0,0.00023156,3]
[345568013,1734355838857,-500.0,0.00023156,3]
[345568014,1734355838866,-500.0,0.00023156,3]
[345568015,1734355838876,-500.0,0.00023156,3]
[345568016,1734355838886,-500.0,0.00023156,3]
[345568017,1734355838895,-500.0,0.00023156,3]
[345568018,1734355838905,-500.0,0.00023156,3]
[345568019,1734355838914,-500.0,0.00023156,3]
[345568020,1734355838924,-500.0,0.00023156,3]
[345568021,1734355838934,-500.0,0.00023156,3]
[345568022,1734355838943,-500.0,0.00023156,3]
[345568023,1734355838953,-500.0,0.00023156,3]
[345568024,1734355838962,-500.0,0.00023156,3]
[345568025,1734355838971,-590.15898656,0.00023156,3]
[345568026,1734355838981,-500.0,0.00023156,3]
[345568027,1734355838995,-613.75,0.00023156,3]
[345568028,1734355839005,-500.0,0.00023156,3]
[345568029,1734355839015,-500.0,0.00023156,3]
[345568030,1734355839025,-500.0,0.00023156,3]
[345568031,1734355839034,-880.308,0.00023157,2]
[345568032,1734355839043,-929.0,0.00023157,2]
[345568033,1734355839052,-202.915,0.00023157,2]
[345568034,1734355839062,-535.0,0.00023157,2]
[345568035,1734355839071,-3632.0,0.00023157,2]
[345568036,1734355839080,-1099.0,0.00023157,2]
[345568037,1734355839090,-3882.0,0.00023157,2]
[345568038,1734355839099,-150.0,0.00023157,2]
[345568039,1734355839110,-958.337,0.00023157,2]
[345568040,1734355839119,-4280.488,0.00023157,2]
[345568041,1734355839129,-1168.0,0.00023157,2]
[345568042,1734355839138,-502.86235044,0.00023186,3]
[345568043,1734355839148,-394.04542273,0.00023186,3]
[345568044,1734355839158,-501.58376686,0.00023186,3]
[345568045,1734355839167,-800.0,0.00023356,2]
[345568046,1734355839176,-500.0,0.00023356,2]
[345568047,1734355839186,-268.82165069,0.0002337,2]
[345568048,1734355839195,-500.0,0.00023415,7]
[345568049,1734355839206,-268.82165069,0.00023625,2]
[345568050,1734355839214,-212.0,0.0002366,2]
[345568051,1734355839224,-500.0,0.00023689,7]
[345568052,1734355839233,-1070.0,0.00023713,2]
[345568053,1734355839249,-645.668,0.0002375,2]
[345568054,1734355839260,-1662.39755092,0.00023838,2]
[345568055,1734355839270,-268.82165069,0.0002388,2]
[345568056,1734355839279,-2000.0,0.00023904,2]
[345568057,1734355839288,-656.62,0.00023947,2]
[345568058,1734355839297,-500.0,0.00023962,7]
[345568059,1734355839307,-7111.74931,0.00024,30]
[345568060,1734355839315,-4079.821,0.00024076,5]
[345568061,1734355839325,-153.236,0.00024076,5]
[345568062,1734355839334,-200.0,0.000241,2]
[345568063,1734355839343,-1229.42281568,0.00024108,2]
[345568064,1734355839352,-205.0,0.0002411,2]
[345568065,1734355839362,-212.0,0.0002411,2]
[345568066,1734355839371,-2500.0,0.00024119,2]
[345568067,1734355839381,-4096.42,0.0002412,2]
[345568068,1734355839390,-2500.0,0.00024134,2]
[345568069,1734355839399,-178.0,0.00024164,2]
[345568070,1734355839408,-2000.0,0.00024207,120]
[345568071,1734355839417,-858.43,0.00024214,3]
[345568072,1734355839427,-500.0,0.00024214,3]
[345568073,1734355839435,-372.25,0.00024214,3]
[345568074,1734355839445,-208.81,0.00024214,3]
[345568075,1734355839454,-500.0,0.00024214,3]
[345568076,1734355839467,-500.0,0.00024214,3]
[345568077,1734355839477,-500.0,0.00024214,3]
[345568078,1734355839490,-500.0,0.00024214,3]
[345568079,1734355839499,-500.0,0.00024214,3]
[345568080,1734355839509,-155.38929767,0.00024214,3]
[345568081,1734355839518,-629.77,0.00024214,3]
[345568082,1734355839528,-500.0,0.00024214,3]
[345568083,1734355839538,-500.0,0.00024214,3]
[345568084,1734355839547,-500.0,0.00024214,3]
[345568085,1734355839556,-500.0,0.00024235,7]
[345568086,1734355839566,-5000.0,0.00024243,2]
[345568087,1734355839577,-600.69231359,0.0002425,7]
[345568088,1734355839587,-636.11738399,0.00024304,2]
[345568089,1734355839596,-1000.0,0.00024305,2]
[345568090,1734355839605,-150.0,0.00024316,2]
[345568091,1734355839615,-2500.0,0.0002435,2]
[345568092,1734355839624,-277.11514414,0.00024398,2]
[345568093,1734355839633,-3000.0,0.000244,2]
[345568094,1734355839642,-655.87,0.00024434,2]
[345568095,1734355839652,-800.0,0.00024452,2]
[345568096,1734355839662,-1038.607068,0.00024498,2]
[345568097,1734355839671,-284.3985063,0.000245,2]
[345568098,1734355839685,-2110.0,0.000245,2]
[345568099,1734355839694,-636.11738399,0.00024503,2]
[345568100,1734355839885,-1229.42281568,0.00024504,2]
[345568101,1734355839895,-500.0,0.00024508,7]
[345568102,1734355839904,-205.0,0.0002455,2]
[345568103,1734355839913,-212.0,0.0002455,2]
[345568104,1734355839922,-207.0,0.0002455,2]
[345568105,1734355839931,-1000.0,0.00024658,2]
[345568106,1734355839940,-160.73,0.00024658,2]
[345568107,1734355839949,-166.29,0.00024659,2]
[345568108,1734355839958,-153.0,0.0002467,2]
[345568109,1734355839967,-153.0,0.0002467,2]
[345568110,1734355839977,-153.0,0.0002467,2]
[345568111,1734355839988,-153.0,0.0002467,2]
[345568112,1734355839998,-153.0,0.0002467,2]
[345568113,1734355840007,-153.0,0.0002467,2]
[345568114,1734355840017,-153.0,0.0002467,2]
[345568115,1734355840026,-153.0,0.0002467,2]
[345568116,1734355840035,-153.0,0.0002467,2]
[345568117,1734355840044,-153.0,0.0002467,2]
[345568118,1734355840053,-153.0,0.0002467,2]
[345568119,1734355840063,-153.0,0.0002467,2]
[345568120,1734355840072,-153.0,0.0002467,2]
[345568121,1734355840081,-153.0,0.0002467,2]
[345568122,1734355840091,-153.0,0.0002467,2]
[345568123,1734355840101,-153.0,0.0002467,2]
[345568124,1734355840110,-153.0,0.0002467,2]
[345568125,1734355840119,-153.0,0.0002467,2]
[345568126,1734355840128,-153.0,0.0002467,2]
[345568127,1734355840137,-153.0,0.0002467,2]
[345568128,1734355840146,-150.0,0.00024681,2]
[345568129,1734355840155,-200.0,0.000247,2]
[345568130,1734355840165,-460.30412862,0.000247,2]
[345568131,1734355840174,-1177.37514,0.000247,2]
[345568132,1734355840183,-636.11738399,0.00024701,2]
[345568133,1734355840201,-277.11514414,0.00024726,2]
[345568134,1734355840212,-500.0,0.00024781,7]
[345568135,1734355840222,-20000.0,0.000248,2]
[345568136,1734355840232,-38948.83397665,0.000248,2]
[345568137,1734355840246,-1108.72342683,0.00024826,10]
[345568140,1734355840256,-1108.72342683,0.00024827,10]
[345568143,1734355840266,-909.66806518,0.00024827,10]
[345568145,1734355840276,-1332.83728541,0.00024828,10]
[345568147,1734355840286,-1192.71130426,0.00024828,10]
[345568148,1734355840296,-2217.44685366,0.00024828,10]
[345568149,1734355840306,-17659.29250297,0.00024829,10]
[345568150,1734355840316,-1175.39009349,0.00024829,10]
[345568151,1734355840325,-534572.95278055,0.00024829,10]
[345568152,1734355840335,-1262.77429483,0.00024829,10]
[345568153,1734355840345,-200.0,0.00024829,10]
[345568154,1734355840355,-2500.0,0.0002483,2]
[345568155,1734355840365,-1192.71130426,0.0002483,10]
[345568156,1734355840374,-1108.72342683,0.00024831,10]
[345568157,1734355840384,-17659.29250297,0.00024831,10]
[345568158,1734355840394,-200.0,0.00024831,10]
[345568159,1734355840404,-17813.76514324,0.00024831,10]
[345568160,1734355840423,-534572.95278055,0.00024831,10]
[345568161,1734355840438,-708.19076629,0.00024831,10]
[345568162,1734355840449,-708.19076629,0.00024832,10]
[345568163,1734355840459,-1032.99189687,0.00024833,10]
[345568164,1734355840471,-708.19076628,0.00024833,10]
[345568165,1734355840482,-4177.9911576,0.00024833,10]
[345568166,1734355840495,-1032.99189687,0.00024834,10]
[345568167,1734355840505,-1032.99189687,0.00024834,10]
[345568168,1734355840516,-200.0,0.00024834,10]
[345568169,1734355840525,-909.66806519,0.00024835,10]
[345568170,1734355840535,-17813.76514324,0.00024835,10]
[345568171,1734355840544,-1032.99189687,0.00024836,10]
[345568172,1734355840554,-1262.77429483,0.00024836,10]
[345568173,1734355840564,-708.19076629,0.00024836,10]
[345568174,1734355840574,-17827.21377983,0.00024836,10]
[345568175,1734355840584,-17793.88044649,0.00024837,10]
[345568176,1734355840594,-17017.76840335,0.00024837,10]
[345568177,1734355840605,-4177.9911576,0.00024837,10]
[345568178,1734355840615,-2217.44685366,0.00024837,10]
[345568179,1734355840626,-17659.29250297,0.00024837,10]
[345568180,1734355840635,-1032.99189687,0.00024837,10]
[345568181,1734355840646,-1108.72342683,0.00024837,10]
[345568182,1734355840655,-1032.99189687,0.00024838,10]
[345568183,1734355840665,-1332.83728541,0.00024838,10]
[345568184,1734355840675,-1032.99189688,0.00024838,10]
[345568185,1734355840690,-708.19076628,0.00024839,10]
[345568186,1734355840700,-1108.72342683,0.0002484,10]
[345568187,1734355840709,-150.0,0.0002484,2]
[345568188,1734355840719,-1192.71130426,0.00024841,10]
[345568189,1734355840731,-200.0,0.00024841,10]
[345568190,1734355840742,-200.0,0.00024842,10]
[345568191,1734355840753,-708.19076629,0.00024843,10]
[345568192,1734355840764,-534572.95278055,0.00024843,10]
[345568193,1734355840774,-1108.72342683,0.00024843,10]
[345568194,1734355840783,-1032.99189688,0.00024844,10]
[345568195,1734355840794,-534572.95278055,0.00024844,10]
[345568196,1734355840804,-708.19076628,0.00024844,10]
[345568197,1734355840815,-4177.9911576,0.00024845,10]
[345568198,1734355840825,-708.19076629,0.00024845,10]
[345568199,1734355840834,-1871.21556517,0.00024846,10]
[345568200,1734355840843,-1192.71130426,0.00024846,10]
[345568201,1734355840852,-17017.76840335,0.00024846,10]
[345568202,1734355840861,-3016.50349535,0.00024847,10]
[345568203,1734355840870,-1175.39009349,0.00024847,10]
[345568204,1734355840880,-1032.99189687,0.00024848,10]
[345568205,1734355840889,-909.66806519,0.00024848,10]
[345568206,1734355840898,-2217.44685366,0.00024848,10]
[345568207,1734355840907,-4177.9911576,0.00024848,10]
[345568208,1734355840916,-708.19076629,0.00024848,10]
[345568209,1734355840925,-1175.39009349,0.00024849,10]
[345568210,1734355840935,-1032.99189687,0.00024849,10]
[345568211,1734355840945,-200.0,0.00024849,10]
[345568212,1734355840954,-1108.72342683,0.00024849,10]
[345568213,1734355840963,-708.19076629,0.00024849,10]
[345568214,1734355840972,-1032.99189687,0.00024849,10]
[345568215,1734355840981,-1332.83728541,0.0002485,10]
[345568216,1734355840992,-1032.99189687,0.00024851,10]
[345568217,1734355841001,-17017.76840335,0.00024851,10]
[345568218,1734355841010,-1192.71130426,0.00024852,10]
[345568219,1734355841019,-1332.83728541,0.00024853,10]
[345568220,1734355841028,-17793.88044649,0.00024853,10]
[345568221,1734355841036,-1192.71130426,0.00024853,10]
[345568222,1734355841045,-708.19076628,0.00024853,10]
[345568223,1734355841054,-1332.83728541,0.00024853,10]
[345568224,1734355841063,-1032.99189687,0.00024853,10]
[345568225,1734355841072,-1871.21556517,0.00024854,10]
[345568226,1734355841081,-17793.88044649,0.00024855,10]
[345568227,1734355841089,-1262.77429483,0.00024856,10]
[345568228,1734355841099,-17813.76514324,0.00024856,10]
[345568229,1734355841108,-1032.99189687,0.00024856,10]
[345568230,1734355841117,-1032.99189688,0.00024856,10]
[345568231,1734355841125,-1108.72342683,0.00024857,10]
[345568232,1734355841135,-1175.39009349,0.00024858,10]
[345568233,1734355841144,-1871.21556517,0.00024859,10]
[345568234,1734355841153,-17813.76514324,0.00024859,10]
[345568235,1734355841162,-1192.71130426,0.00024859,10]
[345568236,1734355841171,-16951.10173668,0.00024859,10]
[345568237,1734355841179,-200.0,0.0002486,10]
[345568238,1734355841188,-1032.99189687,0.0002486,10]
[345568239,1734355841197,-3016.50349535,0.0002486,10]
[345568240,1734355841206,-200.0,0.00024861,10]
[345568241,1734355841215,-1108.72342683,0.00024861,10]
[345568242,1734355841224,-3016.50349535,0.00024861,10]
[345568243,1734355841233,-1032.99189687,0.00024862,10]
[345568244,1734355841245,-1192.71130426,0.00024862,10]
[345568245,1734355841254,-17827.21377983,0.00024862,10]
[345568246,1734355841263,-1032.99189687,0.00024865,10]
[345568247,1734355841272,-909.66806518,0.00024865,10]
[345568248,1734355841281,-200.0,0.00024865,10]
[345568249,1734355841290,-1175.39009349,0.00024866,10]
[345568250,1734355841299,-1192.71130426,0.00024866,10]
[345568251,1734355841308,-17659.29250297,0.00024866,10]
[345568252,1734355841317,-708.19076628,0.00024866,10]
[345568253,1734355841326,-1192.71130426,0.00024866,10]
[345568254,1734355841335,-1032.99189687,0.00024867,10]
[345568255,1734355841344,-909.66806518,0.00024868,10]
[345568256,1734355841353,-534572.95278055,0.00024868,10]
[345568257,1734355841362,-3016.50349535,0.00024868,10]
[345568258,1734355841371,-1032.99189687,0.00024868,10]
[345568259,1734355841380,-17793.88044649,0.00024869,10]
[345568260,1734355841389,-1871.21556517,0.00024869,10]
[345568261,1734355841398,-4177.9911576,0.00024869,10]
[345568262,1734355841407,-909.66806519,0.00024869,10]
[345568263,1734355841416,-909.66806519,0.0002487,10]
[345568264,1734355841425,-1108.72342683,0.0002487,10]
[345568265,1734355841435,-1192.71130426,0.0002487,10]
[345568266,1734355841443,-3016.50349535,0.00024871,10]
[345568267,1734355841453,-1108.72342683,0.00024872,10]
[345568268,1734355841461,-909.66806518,0.00024872,10]
[345568269,1734355841471,-17017.76840335,0.00024872,10]
[345568270,1734355841479,-17827.21377983,0.00024873,10]
[345568271,1734355841490,-17827.21377983,0.00024873,10]
[345568272,1734355841499,-1192.71130426,0.00024874,10]
[345568273,1734355841508,-909.66806518,0.00024874,10]
[345568274,1734355841517,-1192.71130426,0.00024874,10]
[345568275,1734355841526,-708.19076629,0.00024875,10]
[345568276,1734355841536,-1262.77429483,0.00024875,10]
[345568277,1734355841547,-1192.71130426,0.00024875,10]
[345568278,1734355841556,-1032.99189687,0.00024875,10]
[345568279,1734355841565,-1332.83728541,0.00024875,10]
[345568280,1734355841575,-1032.99189687,0.00024877,10]
[345568281,1734355841584,-800.0,0.00024877,2]
[345568282,1734355841593,-3016.50349535,0.00024877,10]
[345568283,1734355841603,-1032.99189687,0.00024877,10]
[345568284,1734355841612,-708.19076629,0.00024877,10]
[345568285,1734355841621,-1262.77429483,0.00024878,10]
[345568286,1734355841630,-909.66806518,0.00024878,10]
[345568287,1734355841639,-17813.76514324,0.00024878,10]
[345568288,1734355841649,-1108.72342683,0.00024879,10]
[345568289,1734355841659,-17827.21377983,0.00024879,10]
[345568290,1734355841668,-200.0,0.00024881,10]
[345568291,1734355841678,-1032.99189687,0.00024881,10]
[345568292,1734355841692,-1032.99189687,0.00024881,10]
[345568293,1734355841701,-1032.99189687,0.00024882,10]
[345568294,1734355841711,-1192.71130426,0.00024882,10]
[345568295,1734355841720,-2217.44685366,0.00024882,10]
[345568296,1734355841731,-200.0,0.00024882,10]
[345568297,1734355841744,-1871.21556517,0.00024883,10]
[345568298,1734355841753,-200.0,0.00024883,10]
[345568299,1734355841764,-17017.76840335,0.00024883,10]
[345568300,1734355841774,-1032.99189687,0.00024883,10]
[345568301,1734355841783,-2217.44685366,0.00024883,10]
[345568302,1734355841792,-16951.10173668,0.00024883,10]
[345568303,1734355841802,-1262.77429483,0.00024884,10]
[345568304,1734355841811,-200.0,0.00024884,10]
[345568305,1734355841820,-200.0,0.00024884,10]
[345568306,1734355841830,-1332.83728541,0.00024884,10]
[345568307,1734355841839,-17827.21377983,0.00024885,10]
[345568308,1734355841848,-1108.72342683,0.00024885,10]
[345568309,1734355841857,-1032.99189688,0.00024885,10]
[345568310,1734355841867,-1032.99189687,0.00024886,10]
[345568311,1734355841876,-534572.95278055,0.00024886,10]
[345568312,1734355841885,-4177.9911576,0.00024886,10]
[345568313,1734355841895,-1108.72342683,0.00024886,10]
[345568314,1734355841904,-17813.76514324,0.00024886,10]
[345568315,1734355841913,-1871.21556517,0.00024886,10]
[345568316,1734355841923,-17017.76840335,0.00024886,10]
[345568317,1734355841933,-1332.83728541,0.00024887,10]
[345568318,1734355841943,-708.19076629,0.00024888,10]
[345568319,1734355841953,-17793.88044649,0.00024888,10]
[345568320,1734355841963,-200.0,0.00024889,10]
[345568321,1734355841973,-1192.71130426,0.00024889,10]
[345568322,1734355841983,-1032.99189688,0.0002489,10]
[345568323,1734355841995,-200.0,0.0002489,10]
[345568324,1734355842004,-10809.67491081,0.0002489,30]
[345568325,1734355842013,-200.0,0.0002489,10]
[345568326,1734355842023,-1032.99189687,0.0002489,10]
[345568327,1734355842032,-909.66806519,0.0002489,10]
[345568328,1734355842041,-708.19076628,0.00024891,10]
[345568329,1734355842050,-708.19076629,0.00024892,10]
[345568330,1734355842060,-1108.72342683,0.00024892,10]
[345568331,1734355842069,-16951.10173668,0.00024892,10]
[345568332,1734355842079,-17659.29250297,0.00024892,10]
[345568333,1734355842087,-1332.83728541,0.00024892,10]
[345568334,1734355842097,-1032.99189687,0.00024893,10]
[345568335,1734355842106,-16951.10173668,0.00024893,10]
[345568336,1734355842115,-200.0,0.00024893,10]
[345568337,1734355842123,-1192.71130426,0.00024894,10]
[345568338,1734355842133,-1108.72342683,0.00024894,10]
[345568339,1734355842143,-1032.99189688,0.00024894,10]
[345568340,1734355842152,-1332.83728541,0.00024894,10]
[345568341,1734355842161,-1032.99189687,0.00024894,10]
[345568342,1734355842170,-909.66806519,0.00024894,10]
[345568343,1734355842180,-17659.29250297,0.00024895,10]
[345568344,1734355842189,-1032.99189687,0.00024895,10]
[345568345,1734355842207,-1175.39009349,0.00024895,10]
[345568346,1734355842217,-1332.83728541,0.00024895,10]
[345568347,1734355842227,-1108.72342683,0.00024895,10]